[Event "82nd Tata Steel Qualifiers 2020"]
[Site "Wijk aan Zee"]
[Date "2020.01.17"]
[Round "1.1"]
[White "De Boer, Eelke"]
[Black "Slingerland, Fred"]
[Result "0-1"]
[ECO "B67"]
[WhiteElo "2324"]
[BlackElo "2333"]
[Annotator "ChessBase"]
[PlyCount "88"]
[EventDate "2020.01.18"]
[EventCountry "NED"]
[SourceTitle "playchess.com"]
[Source "ChessBase"]
[SourceQuality "1"]
[TimeControl "40/6000+30:20/3000+30:900+30"]

1. e4 {[%emt 0:00:00]} c5 {[%emt 0:00:00]} 2. Nf3 {[%emt 0:00:00]} d6 {[%emt 0:00:00]} 3. d4 {[%emt 0:00:00]} cxd4 {[%emt 0:00:00]} 4. Nxd4 {[%emt 0:00:00]} Nf6 {[%emt 0:00:00]} 5. Nc3 {[%emt 0:00:01]} Nc6 {[%emt 0:00:00]} 6. Bg5 {[%emt 0:00:09]} e6 {[%emt 0:00:02]} 7. Qd2 {[%emt 0:00:08]} a6 {[%emt 0:00:09]} 8. O-O-O {[%emt 0:00:26]} Bd7 {[%emt 0:00:21]} 9. f3 {[%emt 0:00:12]} b5 {[%emt 0:00:05]} 10. Nxc6 {[%emt 0:00:09]} Bxc6 {[%emt 0:00:06]} 11. Ne2 {[%emt 0:00:07]} Be7 {[%emt 0:00:39]} 12. Nd4 {[%emt 0:03:25]} Bb7 {[%emt 0:09:47]} 13. h4 {[%emt 0:00:54]} Rc8 {[%emt 0:00:51]} 14. Kb1 {[%emt 0:05:37]} Nd7 {[%emt 0:02:57]} 15. Bd3 {[%emt 0:19:49]} Ne5 {[%emt 0:01:12]} 16. f4 {[%emt 0:08:40]} Nc6 {[%emt 0:04:01]} 17. Bxe7 {[%emt 0:05:19]} Qxe7 {[%emt 0:00:25]} 18. Nb3 {[%emt 0:05:09]} O-O {[%emt 0:02:22]} 19. c3 {[%emt 0:01:26]} Rfd8 {[%emt 0:01:25]} 20. Qe3 {[%emt 0:09:26]} b4 {[%emt 0:09:46]} 21. c4 {[%emt 0:03:28]} a5 {[%emt 0:07:21]} 22. g3 {[%emt 0:10:04]} a4 {[%emt 0:10:16]} 23. Nd4 {[%emt 0:02:07]} Nxd4 {[%emt 0:06:28]} 24. Qxd4 {[%emt 0:00:06]} e5 {[%emt 0:01:28]} 25. Qe3 {[%emt 0:00:25]} exf4 {[%emt 0:01:26]} 26. gxf4 {[%emt 0:00:18]} Re8 {[%emt 0:00:31]} 27. Rhe1 {[%emt 0:03:12]} d5 {[%emt 0:14:35]} 28. cxd5 {[%emt 0:02:07]} Bxd5 {[%emt 0:00:12]} 29. Qd4 {[%emt 0:02:05]} Bb7 {[%emt 0:01:03]} 30. Rg1 {[%emt 0:02:45]} g6 {[%emt 0:00:59]} 31. e5 {[%emt 0:00:30]} Red8 {[%emt 0:02:58]} 32. Qe3 {[%emt 0:00:15]} a3 {[%emt 0:03:43]} 33. f5 {[%emt 0:02:39]} Qxh4 {[%emt 0:08:56]} 34. e6 {[%emt 0:02:38]} Rxd3 {[%emt 0:02:23]} 35. Rxd3 {[%emt 0:00:26]} Be4 {[%emt 0:00:29]} 36. exf7+ {[%emt 0:00:37]} Kf8 {[%emt 0:03:38]} 37. Qd4 {[%emt 0:03:33]} Rd8 {[%emt 0:09:11]} 38. Qxb4+ {[%emt 0:00:28]} Kxf7 {[%emt 0:01:32]} 39. fxg6+ {[%emt 0:01:15]} hxg6 {[%emt 0:01:00]} 40. Qb3+ {[%emt 0:01:24]} Kg7 {[%emt 0:01:48]} 41. Rgd1 {[%emt 0:50:15]} Rxd3 {[%emt 0:50:58]} 42. Rxd3 {[%emt 0:00:47]} Qe1+ {[%emt 0:00:29]} 43. Kc2 {[%emt 0:00:14]} Qe2+ {[%emt 0:00:16]} 44. Kc1 {[%emt 0:00:52]} axb2+ {[%emt 0:00:23]} 0-1

[Event "82nd Tata Steel Qualifiers 2020"]
[Site "Wijk aan Zee"]
[Date "2020.01.17"]
[Round "1.2"]
[White "Beukema, Stefan"]
[Black "Suleymanli, Aydin"]
[Result "1/2-1/2"]
[ECO "A03"]
[WhiteElo "2389"]
[BlackElo "2473"]
[Annotator "ChessBase"]
[PlyCount "87"]
[EventDate "2020.01.18"]
[EventCountry "NED"]
[SourceTitle "playchess.com"]
[Source "ChessBase"]
[SourceQuality "1"]
[TimeControl "40/6000+30:20/3000+30:900+30"]

1. f4 {[%emt 0:00:08]} d5 {[%emt 0:00:13]} 2. d3 {[%emt 0:00:25]} Nf6 {[%emt 0:00:44]} 3. Nf3 {[%emt 0:00:07]} g6 {[%emt 0:02:00]} 4. g3 {[%emt 0:00:08]} Bg7 {[%emt 0:00:03]} 5. Bg2 {[%emt 0:00:05]} O-O {[%emt 0:00:03]} 6. O-O {[%emt 0:00:05]} c5 {[%emt 0:00:17]} 7. c3 {[%emt 0:00:07]} Nc6 {[%emt 0:00:55]} 8. Qe1 {[%emt 0:00:08]} d4 {[%emt 0:02:22]} 9. Na3 {[%emt 0:00:26]} Nd5 {[%emt 0:12:35]} 10. Bd2 {[%emt 0:00:08]} b6 {[%emt 0:05:45]} 11. Nc2 {[%emt 0:13:44]} Bb7 {[%emt 0:01:54]} 12. c4 {[%emt 0:00:07]} Nc7 {[%emt 0:00:45]} 13. a3 {[%emt 0:04:30]} Qd6 {[%emt 0:05:54]} 14. b4 {[%emt 0:00:31]} Rae8 {[%emt 0:01:25]} 15. b5 {[%emt 0:08:12]} Nb8 {[%emt 0:23:48]} 16. a4 {[%emt 0:00:28]} Nd7 {[%emt 0:00:33]} 17. a5 {[%emt 0:01:26]} Bc8 {[%emt 0:09:53]} 18. axb6 {[%emt 0:03:53]} axb6 {[%emt 0:00:17]} 19. Ra7 {[%emt 0:00:59]} e5 {[%emt 0:00:55]} 20. f5 {[%emt 0:04:11]} Nf6 {[%emt 0:01:54]} 21. Nh4 {[%emt 0:00:55]} Re7 {[%emt 0:01:28]} 22. h3 {[%emt 0:02:56]} Nh5 {[%emt 0:08:42]} 23. Be4 {[%emt 0:15:44]} Nd5 {[%emt 0:02:18]} 24. Rxe7 {[%emt 0:03:00]} Nxe7 {[%emt 0:00:06]} 25. g4 {[%emt 0:01:08]} Nf6 {[%emt 0:03:36]} 26. Bg2 {[%emt 0:00:57]} gxf5 {[%emt 0:00:12]} 27. gxf5 {[%emt 0:01:12]} Kh8 {[%emt 0:00:33]} 28. Qf2 {[%emt 0:04:12]} Rg8 {[%emt 0:02:31]} 29. Qf3 {[%emt 0:04:07]} Bf8 {[%emt 0:01:28]} 30. Kh1 {[%emt 0:02:13]} Qd7 {[%emt 0:04:19]} 31. Ne1 {[%emt 0:06:48]} Ne8 {[%emt 0:13:59]} 32. f6 {[%emt 0:11:52]} Ng6 {[%emt 0:00:01]} 33. Qh5 {[%emt 0:01:42]} Nxh4 {[%emt 0:00:55]} 34. Qxh4 {[%emt 0:00:06]} Nd6 {[%emt 0:00:04]} 35. Kh2 {[%emt 0:05:34]} Nf5 {[%emt 0:02:06]} 36. Rxf5 {[%emt 0:00:12]} Rxg2+ {[%emt 0:00:04]} 37. Nxg2 {[%emt 0:00:55]} Qxf5 {[%emt 0:00:02]} 38. Bh6 {[%emt 0:11:12]} Bd6 {[%emt 0:00:41]} 39. Bg7+ {[%emt 0:00:31]} Kg8 {[%emt 0:00:02]} 40. Qg3 {[%emt 0:00:08]} Qg6 {[%emt 0:00:33]} 41. Bh6 {[%emt 0:52:49]} Kh8 {[%emt 0:52:30]} 42. Bg7+ {[%emt 0:02:07]} Kg8 {[%emt 0:00:01]} 43. Bh6 {[%emt 0:00:07]} Kh8 {[%emt 0:00:24]} 44. Bg7+ {[%emt 0:01:06]} 1/2-1/2

[Event "82nd Tata Steel Qualifiers 2020"]
[Site "Wijk aan Zee"]
[Date "2020.01.17"]
[Round "1.3"]
[White "Pijpers, Arthur"]
[Black "Van Dael, Siem"]
[Result "0-1"]
[ECO "B33"]
[WhiteElo "2480"]
[BlackElo "2252"]
[Annotator "ChessBase"]
[PlyCount "70"]
[EventDate "2020.01.18"]
[EventCountry "NED"]
[SourceTitle "playchess.com"]
[Source "ChessBase"]
[SourceQuality "1"]
[TimeControl "40/6000+30:20/3000+30:900+30"]

1. e4 {[%emt 0:00:00]} c5 {[%emt 0:00:00]} 2. Nf3 {[%emt 0:00:00]} Nc6 {[%emt 0:00:00]} 3. d4 {[%emt 0:00:00]} cxd4 {[%emt 0:00:00]} 4. Nxd4 {[%emt 0:00:00]} Nf6 {[%emt 0:00:05]} 5. Nc3 {[%emt 0:00:00]} e5 {[%emt 0:00:06]} 6. Ndb5 {[%emt 0:00:00]} d6 {[%emt 0:00:06]} 7. Bg5 {[%emt 0:00:10]} a6 {[%emt 0:00:13]} 8. Na3 {[%emt 0:00:06]} b5 {[%emt 0:00:05]} 9. Nd5 {[%emt 0:00:14]} Be7 {[%emt 0:00:08]} 10. Bxf6 {[%emt 0:00:03]} Bxf6 {[%emt 0:00:07]} 11. c3 {[%emt 0:00:03]} Ne7 {[%emt 0:02:16]} 12. Nxf6+ {[%emt 0:00:29]} gxf6 {[%emt 0:00:07]} 13. Bd3 {[%emt 0:02:37]} d5 {[%emt 0:00:41]} 14. Qe2 {[%emt 0:00:58]} Bb7 {[%emt 0:02:47]} 15. Nc2 {[%emt 0:10:34]} f5 {[%emt 0:12:36]} 16. exf5 {[%emt 0:15:51]} e4 {[%emt 0:00:51]} 17. f6 {[%emt 0:02:03]} Ng6 {[%emt 0:01:01]} 18. Qe3 {[%emt 0:17:14]} Qxf6 {[%emt 0:07:27]} 19. O-O-O {[%emt 0:01:09]} O-O {[%emt 0:16:35]} 20. Be2 {[%emt 0:01:49]} Nf4 {[%emt 0:05:07]} 21. Nd4 {[%emt 0:21:56]} Kh8 {[%emt 0:09:40]} 22. g3 {[%emt 0:01:25]} Ne6 {[%emt 0:02:28]} 23. f3 {[%emt 0:02:36]} Rae8 {[%emt 0:25:34]} 24. fxe4 {[%emt 0:09:49]} Nxd4 {[%emt 0:03:59]} 25. Rxd4 {[%emt 0:00:05]} dxe4 {[%emt 0:03:51]} 26. Rf1 {[%emt 0:03:13]} Qe6 {[%emt 0:01:13]} 27. Qg5 {[%emt 0:08:04]} f6 {[%emt 0:04:45]} 28. Qf4 {[%emt 0:03:13]} Qxa2 {[%emt 0:05:06]} 29. Rd7 {[%emt 0:02:42]} Bd5 {[%emt 0:02:41]} 30. Qc7 {[%emt 0:02:07]} Qa1+ {[%emt 0:00:13]} 31. Kd2 {[%emt 0:01:22]} e3+ {[%emt 0:00:42]} 32. Kd3 {[%emt 0:00:05]} Be4+ {[%emt 0:00:31]} 33. Kd4 {[%emt 0:00:05]} Qxb2 {[%emt 0:00:35]} 34. Re7 {[%emt 0:02:22]} Qxe2 {[%emt 0:00:56]} 35. Kxe4 {[%emt 0:01:27]} Qxf1 {[%emt 0:00:41]} 0-1

[Event "82nd Tata Steel Qualifiers 2020"]
[Site "Wijk aan Zee"]
[Date "2020.01.17"]
[Round "1.4"]
[White "Zwirs, Nico"]
[Black "Akash G"]
[Result "1/2-1/2"]
[ECO "B67"]
[WhiteElo "2418"]
[BlackElo "2461"]
[Annotator "ChessBase"]
[PlyCount "206"]
[EventDate "2020.01.18"]
[EventCountry "NED"]
[SourceTitle "playchess.com"]
[Source "ChessBase"]
[SourceQuality "1"]
[TimeControl "40/6000+30:20/3000+30:900+30"]

1. e4 {[%emt 0:00:00]} c5 {[%emt 0:00:10]} 2. Nf3 {[%emt 0:00:00]} d6 {[%emt 0:00:30]} 3. d4 {[%emt 0:00:11]} cxd4 {[%emt 0:00:08]} 4. Nxd4 {[%emt 0:00:07]} Nf6 {[%emt 0:00:17]} 5. Nc3 {[%emt 0:00:07]} Nc6 {[%emt 0:00:07]} 6. Bg5 {[%emt 0:02:29]} e6 {[%emt 0:00:08]} 7. Qd2 {[%emt 0:00:05]} a6 {[%emt 0:00:13]} 8. O-O-O {[%emt 0:00:26]} Bd7 {[%emt 0:00:10]} 9. f4 {[%emt 0:01:59]} b5 {[%emt 0:00:26]} 10. Bxf6 {[%emt 0:01:43]} gxf6 {[%emt 0:00:25]} 11. Kb1 {[%emt 0:00:33]} Qb6 {[%emt 0:00:57]} 12. Nxc6 {[%emt 0:05:19]} Bxc6 {[%emt 0:00:22]} 13. f5 {[%emt 0:00:06]} Qc5 {[%emt 0:07:13]} 14. Bd3 {[%emt 0:05:31]} h5 15. fxe6 {[%emt 0:13:26]} fxe6 {[%emt 0:13:13]} 16. Rhf1 {[%emt 0:00:17]} Bh6 {[%emt 0:17:39]} 17. Qe2 {[%emt 0:11:52]} Qe5 {[%emt 0:19:26]} 18. Qf2 {[%emt 0:02:13]} Bg7 {[%emt 0:10:35]} 19. Nd5 {[%emt 0:18:54]} Kf7 {[%emt 0:03:44]} 20. Qb6 {[%emt 0:04:23]} Bd7 {[%emt 0:22:33]} 21. Qb7 {[%emt 0:07:34]} Rad8 {[%emt 0:03:37]} 22. Nb6 {[%emt 0:01:09]} Ke7 {[%emt 0:00:41]} 23. Qxa6 {[%emt 0:01:38]} f5 {[%emt 0:01:40]} 24. c3 {[%emt 0:00:11]} fxe4 {[%emt 0:00:33]} 25. Rfe1 {[%emt 0:02:15]} e3 {[%emt 0:03:21]} 26. Nxd7 {[%emt 0:08:54]} Rxd7 {[%emt 0:00:30]} 27. Bxb5 {[%emt 0:00:20]} Rb8 {[%emt 0:01:53]} 28. a4 {[%emt 0:05:53]} Qe4+ {[%emt 0:02:55]} 29. Rd3 {[%emt 0:06:12]} Qxg2 {[%emt 0:00:19]} 30. Rdxe3 {[%emt 0:00:46]} Be5 {[%emt 0:00:32]} 31. Qc6 {[%emt 0:03:53]} Qxc6 {[%emt 0:00:18]} 32. Bxc6 {[%emt 0:00:01]} Rc7 {[%emt 0:00:08]} 33. Bb5 {[%emt 0:00:06]} Rg8 {[%emt 0:00:58]} 34. R1e2 {[%emt 0:02:11]} Rg6 {[%emt 0:00:45]} 35. Kc2 {[%emt 0:02:35]} Bd4 {[%emt 0:00:28]} 36. Rg3 {[%emt 0:01:32]} Rxg3 {[%emt 0:00:26]} 37. hxg3 {[%emt 0:00:00]} Be5 {[%emt 0:00:11]} 38. Rh2 {[%emt 0:00:07]} Bxg3 {[%emt 0:00:28]} 39. Rxh5 {[%emt 0:00:05]} d5 {[%emt 0:00:28]} 40. a5 {[%emt 0:03:32]} Bf2 {[%emt 0:00:58]} 41. Be2 {[%emt 0:50:46]} Kd6 {[%emt 0:18:33]} 42. Kd2 {[%emt 0:00:00]} Rb7 {[%emt 0:04:06]} 43. b4 {[%emt 0:00:00]} d4 {[%emt 0:03:07]} 44. b5 {[%emt 0:00:00]} dxc3+ {[%emt 0:00:29]} 45. Kc2 {[%emt 0:00:00]} Ra7 {[%emt 0:04:22]} 46. b6 {[%emt 0:00:00]} Bxb6 {[%emt 0:01:24]} 47. axb6 {[%emt 0:00:00]} Rb7 {[%emt 0:00:09]} 48. Kxc3 {[%emt 0:00:00]} Rxb6 {[%emt 0:00:06]} 49. Kd4 {[%emt 0:00:00]} e5+ {[%emt 0:01:11]} 50. Kc4 {[%emt 0:00:00]} Rb2 {[%emt 0:01:37]} 51. Rh6+ {[%emt 0:00:00]} Ke7 {[%emt 0:00:08]} 52. Bf3 {[%emt 0:00:00]} e4 {[%emt 0:00:22]} 53. Bxe4 {[%emt 0:00:00]} Rd2 {[%emt 0:00:40]} 54. Kc5 {[%emt 0:00:00]} Rd1 {[%emt 0:00:43]} 55. Bd5 {[%emt 0:00:00]} Rc1+ {[%emt 0:01:16]} 56. Kd4 {[%emt 0:00:00]} Rd1+ {[%emt 0:00:07]} 57. Ke5 {[%emt 0:00:00]} Re1+ {[%emt 0:00:05]} 58. Be4 {[%emt 0:00:00]} Re2 {[%emt 0:00:42]} 59. Rh7+ {[%emt 0:00:00]} Ke8 {[%emt 0:00:09]} 60. Kd5 {[%emt 0:00:00]} Kf8 {[%emt 0:00:33]} 61. Rb7 {[%emt 0:03:12]} Re1 {[%emt 0:15:37]} 62. Bf5 {[%emt 0:02:58]} Re7 {[%emt 0:00:44]} 63. Bd7 {[%emt 0:00:51]} Kg7 {[%emt 0:02:25]} 64. Kd6 {[%emt 0:00:04]} Re1 {[%emt 0:00:47]} 65. Be6+ {[%emt 0:00:24]} Kf6 {[%emt 0:00:58]} 66. Rf7+ {[%emt 0:00:08]} Kg5 {[%emt 0:01:06]} 67. Rf5+ {[%emt 0:01:45]} Kh4 {[%emt 0:01:25]} 68. Rf3 {[%emt 0:00:04]} Kg5 {[%emt 0:01:51]} 69. Bf5 {[%emt 0:01:23]} Ra1 {[%emt 0:00:57]} 70. Be4 {[%emt 0:00:08]} Ra6+ {[%emt 0:00:18]} 71. Ke5 {[%emt 0:00:07]} Ra5+ {[%emt 0:00:04]} 72. Bd5 {[%emt 0:00:06]} Kh5 {[%emt 0:01:12]} 73. Rf2 {[%emt 0:05:01]} Rb5 {[%emt 0:01:04]} 74. Rf5+ {[%emt 0:05:15]} Kg4 {[%emt 0:00:14]} 75. Rf4+ {[%emt 0:00:31]} Kg5 {[%emt 0:00:53]} 76. Rf1 {[%emt 0:04:30]} Kh5 {[%emt 0:00:46]} 77. Rg1 {[%emt 0:00:05]} Ra5 {[%emt 0:00:15]} 78. Ke4 {[%emt 0:02:19]} Kh6 {[%emt 0:00:11]} 79. Be6 {[%emt 0:00:18]} Rg5 {[%emt 0:00:10]} 80. Rh1+ {[%emt 0:00:05]} Kg6 {[%emt 0:01:13]} 81. Rh8 {[%emt 0:01:25]} Kf6 {[%emt 0:00:34]} 82. Bd5 {[%emt 0:00:19]} Rg4+ {[%emt 0:00:21]} 83. Ke3 {[%emt 0:00:03]} Ra4 {[%emt 0:00:49]} 84. Be4 {[%emt 0:00:05]} Ra1 {[%emt 0:01:20]} 85. Rh6+ {[%emt 0:00:13]} Ke5 {[%emt 0:00:22]} 86. Rh5+ {[%emt 0:00:05]} Ke6 {[%emt 0:00:18]} 87. Kf4 {[%emt 0:00:03]} Rf1+ {[%emt 0:00:19]} 88. Bf3 {[%emt 0:00:02]} Kf6 {[%emt 0:00:45]} 89. Rc5 {[%emt 0:00:08]} Ke6 {[%emt 0:00:33]} 90. Rc6+ {[%emt 0:00:06]} Ke7 {[%emt 0:00:18]} 91. Ke4 {[%emt 0:00:10]} Re1+ {[%emt 0:00:44]} 92. Kd5 {[%emt 0:00:06]} Kf8 {[%emt 0:02:01]} 93. Rc7 {[%emt 0:00:33]} Re7 {[%emt 0:00:19]} 94. Rc3 {[%emt 0:00:37]} Kg7 {[%emt 0:00:43]} 95. Bg4 {[%emt 0:00:06]} Kf6 {[%emt 0:00:45]} 96. Rf3+ {[%emt 0:00:23]} Kg5 {[%emt 0:00:14]} 97. Be6 {[%emt 0:00:03]} Ra7 {[%emt 0:00:29]} 98. Rf5+ {[%emt 0:01:20]} Kg6 {[%emt 0:00:51]} 99. Rf8 {[%emt 0:00:10]} Ra5+ {[%emt 0:00:30]} 100. Kd6 {[%emt 0:00:12]} Ra6+ {[%emt 0:00:06]} 101. Ke7 {[%emt 0:00:10]} Ra7+ {[%emt 0:00:30]} 102. Bd7 {[%emt 0:00:10]} Kg5 {[%emt 0:00:19]} 103. Rf5+ {[%emt 0:00:11]} Kh4 {[%emt 0:00:27]} 1/2-1/2

[Event "82nd Tata Steel Qualifiers 2020"]
[Site "Wijk aan Zee"]
[Date "2020.01.17"]
[Round "1.5"]
[White "Beerdsen, Thomas"]
[Black "Vogel, Roven"]
[Result "0-1"]
[ECO "B57"]
[WhiteElo "2495"]
[BlackElo "2465"]
[Annotator "ChessBase"]
[PlyCount "84"]
[EventDate "2020.01.18"]
[EventCountry "NED"]
[SourceTitle "playchess.com"]
[Source "ChessBase"]
[SourceQuality "1"]
[TimeControl "40/6000+30:20/3000+30:900+30"]

1. e4 {[%emt 0:00:00]} c5 {[%emt 0:00:00]} 2. Nf3 {[%emt 0:00:00]} d6 {[%emt 0:00:00]} 3. d4 {[%emt 0:00:00]} cxd4 {[%emt 0:00:03]} 4. Nxd4 {[%emt 0:00:02]} Nf6 {[%emt 0:00:08]} 5. Nc3 {[%emt 0:00:04]} Nc6 {[%emt 0:00:12]} 6. Bc4 {[%emt 0:01:29]} Qb6 {[%emt 0:01:34]} 7. Nb3 {[%emt 0:03:58]} e6 {[%emt 0:03:55]} 8. O-O {[%emt 0:01:42]} a6 {[%emt 0:05:25]} 9. a4 {[%emt 0:07:00]} Be7 {[%emt 0:07:43]} 10. Be3 {[%emt 0:03:46]} Qc7 {[%emt 0:00:32]} 11. f4 {[%emt 0:01:57]} b6 12. Nd2 {[%emt 0:06:45]} O-O {[%emt 0:08:14]} 13. Bb3 {[%emt 0:04:17]} Nd7 {[%emt 0:02:37]} 14. f5 {[%emt 0:03:35]} Nde5 {[%emt 0:02:51]} 15. Qh5 {[%emt 0:04:03]} Bf6 16. g4 {[%emt 0:08:20]} g6 {[%emt 0:12:37]} 17. Qh3 {[%emt 0:01:01]} Qe7 {[%emt 0:04:35]} 18. Bxb6 {[%emt 0:02:46]} Bg5 {[%emt 0:03:55]} 19. Rad1 {[%emt 0:02:30]} Bb7 {[%emt 0:08:18]} 20. Nf3 {[%emt 0:02:43]} Nxf3+ {[%emt 0:00:00]} 21. Qxf3 {[%emt 0:01:44]} Ne5 {[%emt 0:04:07]} 22. Qe2 {[%emt 0:07:31]} Kh8 23. Bd4 {[%emt 0:07:32]} Bf6 {[%emt 0:09:22]} 24. fxe6 {[%emt 0:00:12]} fxe6 {[%emt 0:02:09]} 25. Qg2 {[%emt 0:07:48]} Bc6 26. h3 {[%emt 0:12:30]} Nxg4 {[%emt 0:00:00]} 27. hxg4 {[%emt 0:00:30]} Bxd4+ {[%emt 0:00:00]} 28. Rxd4 {[%emt 0:00:17]} Qa7 {[%emt 0:00:00]} 29. Ne2 {[%emt 0:01:43]} e5 {[%emt 0:03:52]} 30. Qh2 {[%emt 0:26:50]} Bxe4 {[%emt 0:02:47]} 31. Rxf8+ {[%emt 0:00:00]} Rxf8 {[%emt 0:12:55]} 32. Qh6 {[%emt 0:01:43]} Rb8 {[%emt 0:05:46]} 33. Qe3 {[%emt 0:00:00]} exd4 34. Nxd4 {[%emt 0:02:40]} Rb4 {[%emt 0:00:00]} 35. c3 {[%emt 0:00:00]} Rxb3 {[%emt 0:00:00]} 36. Qxe4 {[%emt 0:00:00]} Rxb2 {[%emt 0:00:45]} 37. Qe6 {[%emt 0:00:00]} Qb7 {[%emt 0:06:25]} 38. Qe8+ {[%emt 0:00:00]} Kg7 {[%emt 0:00:08]} 39. Ne6+ {[%emt 0:00:00]} Kf6 {[%emt 0:00:06]} 40. g5+ {[%emt 0:00:00]} Kf5 {[%emt 0:00:15]} 41. Nd4+ {[%emt 0:42:31]} Kf4 {[%emt 0:52:35]} 42. Qf8+ {[%emt 0:00:00]} Kg4 {[%emt 0:00:00]} 0-1

[Event "82nd Tata Steel Qualifiers 2020"]
[Site "Wijk aan Zee"]
[Date "2020.01.18"]
[Round "2.1"]
[White "Slingerland, Fred"]
[Black "Vogel, Roven"]
[Result "0-1"]
[ECO "B92"]
[WhiteElo "2333"]
[BlackElo "2465"]
[Annotator "ChessBase"]
[PlyCount "58"]
[EventDate "2020.01.18"]
[EventCountry "NED"]
[SourceTitle "playchess.com"]
[Source "ChessBase"]
[SourceQuality "1"]
[TimeControl "40/6000+30:20/3000+30:900+30"]

1. e4 {[%emt 0:00:00]} c5 {[%emt 0:00:00]} 2. Nf3 {[%emt 0:00:00]} d6 {[%emt 0:00:07]} 3. d4 {[%emt 0:00:00]} cxd4 {[%emt 0:00:06]} 4. Nxd4 {[%emt 0:00:00]} Nf6 {[%emt 0:00:11]} 5. Nc3 {[%emt 0:00:00]} a6 {[%emt 0:00:09]} 6. Be2 {[%emt 0:00:00]} Nbd7 {[%emt 0:00:47]} 7. Nb3 {[%emt 0:01:26]} e6 {[%emt 0:02:36]} 8. a4 {[%emt 0:01:01]} b6 {[%emt 0:01:54]} 9. f4 {[%emt 0:01:07]} Bb7 {[%emt 0:00:48]} 10. Bf3 {[%emt 0:04:29]} Be7 {[%emt 0:03:06]} 11. O-O {[%emt 0:01:05]} Qc7 {[%emt 0:04:03]} 12. Qd3 {[%emt 0:01:35]} h6 {[%emt 0:07:49]} 13. Re1 {[%emt 0:06:21]} Rd8 {[%emt 0:09:44]} 14. Qe2 {[%emt 0:07:40]} O-O {[%emt 0:07:40]} 15. Be3 {[%emt 0:11:16]} d5 {[%emt 0:02:28]} 16. exd5 {[%emt 0:05:19]} exd5 {[%emt 0:00:31]} 17. Rad1 {[%emt 0:01:37]} Bb4 {[%emt 0:02:22]} 18. Qd3 {[%emt 0:05:28]} Nc5 {[%emt 0:02:40]} 19. Nxc5 {[%emt 0:05:05]} bxc5 {[%emt 0:00:48]} 20. Bd2 {[%emt 0:02:44]} d4 {[%emt 0:16:49]} 21. Ne4 {[%emt 0:02:31]} Bxe4 {[%emt 0:00:28]} 22. Bxe4 {[%emt 0:00:15]} c4 {[%emt 0:00:09]} 23. Qe2 {[%emt 0:13:35]} Rfe8 {[%emt 0:02:56]} 24. Bxb4 {[%emt 0:07:39]} Nxe4 {[%emt 0:00:38]} 25. Qf3 {[%emt 0:09:16]} f5 {[%emt 0:01:41]} 26. a5 {[%emt 0:04:06]} Rb8 {[%emt 0:06:41]} 27. c3 {[%emt 0:03:24]} Qa7 {[%emt 0:02:20]} 28. Kf1 {[%emt 0:03:20]} d3 {[%emt 0:06:01]} 29. g3 {[%emt 0:04:00]} Nd2+ {[%emt 0:04:24]} 0-1

[Event "82nd Tata Steel Qualifiers 2020"]
[Site "Wijk aan Zee"]
[Date "2020.01.18"]
[Round "2.3"]
[White "Van Dael, Siem"]
[Black "Zwirs, Nico"]
[Result "0-1"]
[ECO "B90"]
[WhiteElo "2252"]
[BlackElo "2418"]
[Annotator "ChessBase"]
[PlyCount "76"]
[EventDate "2020.01.18"]
[EventCountry "NED"]
[SourceTitle "playchess.com"]
[Source "ChessBase"]
[SourceQuality "1"]
[TimeControl "40/6000+30:20/3000+30:900+30"]

1. e4 {[%emt 0:00:00]} c5 {[%emt 0:00:00]} 2. Nf3 {[%emt 0:00:00]} d6 {[%emt 0:00:00]} 3. d4 {[%emt 0:00:00]} cxd4 {[%emt 0:00:00]} 4. Nxd4 {[%emt 0:00:00]} Nf6 {[%emt 0:00:00]} 5. Nc3 {[%emt 0:00:00]} a6 {[%emt 0:00:12]} 6. Be3 {[%emt 0:00:00]} e5 {[%emt 0:00:09]} 7. Nf3 {[%emt 0:00:00]} Be7 {[%emt 0:07:45]} 8. Bc4 {[%emt 0:00:11]} O-O {[%emt 0:00:18]} 9. O-O {[%emt 0:00:09]} Nc6 {[%emt 0:06:42]} 10. Bb3 {[%emt 0:01:15]} h6 {[%emt 0:16:14]} 11. Qe2 {[%emt 0:02:30]} Na5 {[%emt 0:13:35]} 12. Nd5 {[%emt 0:05:53]} Nxb3 {[%emt 0:01:33]} 13. Bb6 {[%emt 0:04:50]} Qd7 {[%emt 0:05:36]} 14. axb3 {[%emt 0:13:15]} Nxd5 {[%emt 0:00:29]} 15. exd5 {[%emt 0:00:07]} Bd8 {[%emt 0:05:30]} 16. Qe3 {[%emt 0:02:01]} f5 {[%emt 0:01:04]} 17. Bxd8 {[%emt 0:02:40]} Qxd8 {[%emt 0:00:02]} 18. Nd2 {[%emt 0:01:25]} f4 {[%emt 0:11:58]} 19. Qd3 {[%emt 0:05:57]} Bf5 {[%emt 0:02:13]} 20. Ne4 {[%emt 0:00:38]} Bxe4 {[%emt 0:00:48]} 21. Qxe4 {[%emt 0:00:09]} f3 {[%emt 0:00:09]} 22. gxf3 {[%emt 0:07:05]} Rf4 {[%emt 0:03:36]} 23. Qg6 {[%emt 0:01:20]} Rxf3 {[%emt 0:05:15]} 24. Ra4 {[%emt 0:01:40]} Qd7 {[%emt 0:05:45]} 25. Rb4 {[%emt 0:08:38]} Rf6 {[%emt 0:02:17]} 26. Qd3 {[%emt 0:05:40]} Raf8 {[%emt 0:01:02]} 27. Kg2 {[%emt 0:01:45]} Rf4 {[%emt 0:03:46]} 28. Rxf4 {[%emt 0:17:34]} Rxf4 {[%emt 0:00:01]} 29. c3 {[%emt 0:04:27]} e4 {[%emt 0:05:27]} 30. Qe2 {[%emt 0:01:15]} Qf5 {[%emt 0:03:59]} 31. Rd1 {[%emt 0:02:35]} Rh4 {[%emt 0:02:28]} 32. Qe3 {[%emt 0:02:59]} Qg6+ {[%emt 0:02:26]} 33. Kf1 {[%emt 0:03:08]} Rxh2 {[%emt 0:03:00]} 34. Ke2 {[%emt 0:00:17]} Qg4+ {[%emt 0:00:00]} 35. Kd2 {[%emt 0:00:14]} Rh3 {[%emt 0:01:46]} 36. Rg1 {[%emt 0:03:23]} Qxg1 {[%emt 0:00:00]} 37. Qxh3 {[%emt 0:01:06]} Qxf2+ {[%emt 0:00:24]} 38. Kc1 {[%emt 0:01:28]} Kh7 {[%emt 0:00:47]} 0-1